[Event "Titled Tuesday Blitz August 22 Early 2023"]
[White "Marn, Jan"]
[Black "Rakhimzhan_Alen"]
[WhiteFideId "14619245"]
[WhiteElo "2483"]
[BlackElo "2655"]
[Result "1-0"]
[Round "5"]
[TimeControl "180+1"]
[Date "2023.08.22"]
[WhiteClock "0:00:05"]
[BlackClock "0:00:01"]
[Board "83"]

1. d4 {[%clk 0:02:39]}  d5 {[%clk 0:02:58]} 2. Nf3 {[%clk 0:02:37]}  Nf6 {[%clk 0:02:57]} 3. e3 {[%clk 0:02:38]}  c5 {[%clk 0:02:43]} 4. dxc5 {[%clk 0:02:37]}  Qa5+ {[%clk 0:02:41]} 5. Nbd2 {[%clk 0:02:30]}  Qxc5 {[%clk 0:02:41]} 6. a3 {[%clk 0:02:30]}  Qc7 {[%clk 0:02:39]} 7. b4 {[%clk 0:02:30]}  a5 {[%clk 0:02:23]} 8. b5 {[%clk 0:02:25]}  g6 {[%clk 0:02:01]} 9. Bb2 {[%clk 0:02:25]}  Bg7 {[%clk 0:02:02]} 10. c4 {[%clk 0:02:21]}  O-O {[%clk 0:01:59]} 11. Rc1 {[%clk 0:02:10]}  Qd8 {[%clk 0:01:35]} 12. c5 {[%clk 0:01:32]}  a4 {[%clk 0:01:14]} 13. Be2 {[%clk 0:01:30]}  Nbd7 {[%clk 0:01:04]} 14. O-O {[%clk 0:01:29]}  b6 {[%clk 0:01:03]} 15. c6 {[%clk 0:01:24]}  Nc5 {[%clk 0:01:03]} 16. Ne5 {[%clk 0:01:02]}  Bf5 {[%clk 0:00:45]} 17. Ndf3 {[%clk 0:00:57]}  Nb3 {[%clk 0:00:38]} 18. Nd4 {[%clk 0:00:49]}  Nxc1 {[%clk 0:00:37]} 19. Qxc1 {[%clk 0:00:50]}  Ne4 {[%clk 0:00:33]} 20. f4 {[%clk 0:00:50]}  Nc5 {[%clk 0:00:29]} 21. Nxf5 {[%clk 0:00:32]}  gxf5 {[%clk 0:00:30]} 22. Qc2 {[%clk 0:00:32]}  e6 {[%clk 0:00:30]} 23. Bd4 {[%clk 0:00:30]}  Nb3 {[%clk 0:00:29]} 24. Rd1 {[%clk 0:00:14]}  Nxd4 {[%clk 0:00:28]} 25. exd4 {[%clk 0:00:14]}  Qc7 {[%clk 0:00:20]} 26. Re1 {[%clk 0:00:08]}  Kh8 {[%clk 0:00:20]} 27. Bh5 {[%clk 0:00:08]}  f6 {[%clk 0:00:18]} 28. Nd3 {[%clk 0:00:05]}  Qd6 {[%clk 0:00:16]} 29. Qc3 {[%clk 0:00:04]}  Rfc8 {[%clk 0:00:10]} 30. Qb4 {[%clk 0:00:05]}  Bf8 {[%clk 0:00:08]} 31. Qxd6 {[%clk 0:00:04]}  Bxd6 {[%clk 0:00:09]} 32. Rxe6 {[%clk 0:00:03]}  Bxa3 {[%clk 0:00:10]} 33. Rxf6 {[%clk 0:00:03]}  Be7 {[%clk 0:00:08]} 34. Rf7 {[%clk 0:00:03]}  a3 {[%clk 0:00:08]} 35. Nc1 {[%clk 0:00:03]}  Bd6 {[%clk 0:00:07]} 36. g3 {[%clk 0:00:02]}  Rc7 {[%clk 0:00:07]} 37. Rxf5 {[%clk 0:00:01]}  a2 {[%clk 0:00:07]} 38. Nxa2 {[%clk 0:00:02]}  Rxa2 {[%clk 0:00:07]} 39. Rxd5 {[%clk 0:00:03]}  Be7 {[%clk 0:00:07]} 40. Re5 {[%clk 0:00:03]}  Kg7 {[%clk 0:00:07]} 41. d5 {[%clk 0:00:03]}  Bc5+ {[%clk 0:00:06]} 42. Kf1 {[%clk 0:00:03]}  Rb2 {[%clk 0:00:07]} 43. Be2 {[%clk 0:00:02]}  Ra7 {[%clk 0:00:06]} 44. Re6 {[%clk 0:00:02]}  Kf7 {[%clk 0:00:05]} 45. Kg2 {[%clk 0:00:02]}  Raa2 {[%clk 0:00:03]} 46. Kf3 {[%clk 0:00:02]}  Ra7 {[%clk 0:00:03]} 47. h4 {[%clk 0:00:02]}  Rb3+ {[%clk 0:00:03]} 48. Kg4 {[%clk 0:00:02]}  Rb2 {[%clk 0:00:02]} 49. Kf5 {[%clk 0:00:02]}  Rd2 {[%clk 0:00:02]} 50. Bh5+ {[%clk 0:00:02]}  Kg7 {[%clk 0:00:02]} 51. Bf3 {[%clk 0:00:03]}  Rc2 {[%clk 0:00:01]} 52. Be4 {[%clk 0:00:03]}  Rd2 {[%clk 0:00:01]} 53. g4 {[%clk 0:00:03]}  Kf8 {[%clk 0:00:02]} 54. g5 {[%clk 0:00:04]}  Rf7+ {[%clk 0:00:02]} 55. Kg4 {[%clk 0:00:04]}  Rf2 {[%clk 0:00:03]} 56. f5 {[%clk 0:00:04]}  Re7 {[%clk 0:00:03]} 57. f6 {[%clk 0:00:02]}  Rxe6 {[%clk 0:00:03]} 58. dxe6 {[%clk 0:00:03]}  Bd6 {[%clk 0:00:04]} 59. Bxh7 {[%clk 0:00:03]}  Rf4+ {[%clk 0:00:04]} 60. Kh5 {[%clk 0:00:04]}  Rb4 {[%clk 0:00:03]} 61. e7+ {[%clk 0:00:04]}  Bxe7 {[%clk 0:00:04]} 62. fxe7+ {[%clk 0:00:05]}  Kxe7 {[%clk 0:00:05]} 63. g6 {[%clk 0:00:05]}  Rxb5+ {[%clk 0:00:04]} 64. Kh6 {[%clk 0:00:06]}  Rc5 {[%clk 0:00:04]} 65. g7 {[%clk 0:00:04]}  Rxc6+ {[%clk 0:00:05]} 66. Bg6 {[%clk 0:00:04]}  Rc8 {[%clk 0:00:04]} 67. Kh7 {[%clk 0:00:05]}  Kf6 {[%clk 0:00:03]} 68. h5 {[%clk 0:00:05]}  Rc7 {[%clk 0:00:03]} 69. h6 {[%clk 0:00:04]}  b5 {[%clk 0:00:03]} 70. Bb1 {[%clk 0:00:04]}  b4 {[%clk 0:00:02]} 71. Kh8 {[%clk 0:00:04]}  Kg5 {[%clk 0:00:02]} 72. h7 {[%clk 0:00:05]}  Kh6 {[%clk 0:00:02]} 73. g8=Q {[%clk 0:00:04]}  Rxh7+ {[%clk 0:00:01]} 74. Qxh7+ {[%clk 0:00:05]} 1-0


[Site "https://www.chess.com"]

[Event "Titled Tuesday Blitz August 22 Early 2023"]
[White "Zeck_CH"]
[Black "Sipila, Vilka"]
[BlackFideId "505455"]
[WhiteElo "2459"]
[BlackElo "2630"]
[Result "0-1"]
[Round "5"]
[TimeControl "180+1"]
[Date "2023.08.22"]
[WhiteClock "0:00:02"]
[BlackClock "0:00:32"]
[Board "85"]

1. e4 {[%clk 0:02:56]}  d5 {[%clk 0:02:58]} 2. exd5 {[%clk 0:02:54]}  Qxd5 {[%clk 0:02:59]} 3. Nc3 {[%clk 0:02:54]}  Qa5 {[%clk 0:02:59]} 4. Bc4 {[%clk 0:02:52]}  Nf6 {[%clk 0:02:59]} 5. h3 {[%clk 0:02:52]}  e6 {[%clk 0:02:43]} 6. d3 {[%clk 0:02:49]}  Bb4 {[%clk 0:02:41]} 7. Bd2 {[%clk 0:02:48]}  Nd5 {[%clk 0:02:37]} 8. Nge2 {[%clk 0:02:42]}  O-O {[%clk 0:02:26]} 9. a3 {[%clk 0:02:18]}  Bxc3 {[%clk 0:02:26]} 10. Nxc3 {[%clk 0:02:19]}  Nb6 {[%clk 0:02:15]} 11. Bb3 {[%clk 0:02:17]}  Qe5+ {[%clk 0:02:13]} 12. Qe2 {[%clk 0:02:16]}  Qxe2+ {[%clk 0:02:13]} 13. Nxe2 {[%clk 0:02:12]}  e5 {[%clk 0:02:13]} 14. O-O {[%clk 0:02:11]}  Nc6 {[%clk 0:02:12]} 15. Bc3 {[%clk 0:02:06]}  Re8 {[%clk 0:02:12]} 16. Rae1 {[%clk 0:02:04]}  Be6 {[%clk 0:02:12]} 17. Bxe6 {[%clk 0:02:03]}  Rxe6 {[%clk 0:02:13]} 18. f4 {[%clk 0:02:03]}  e4 {[%clk 0:02:09]} 19. f5 {[%clk 0:02:02]}  Ree8 {[%clk 0:02:09]} 20. Nf4 {[%clk 0:01:55]}  exd3 {[%clk 0:02:08]} 21. cxd3 {[%clk 0:01:56]}  f6 {[%clk 0:02:02]} 22. Ne6 {[%clk 0:01:54]}  Nd5 {[%clk 0:02:01]} 23. Re4 {[%clk 0:01:50]}  Re7 {[%clk 0:01:56]} 24. Rg4 {[%clk 0:01:39]}  Nd8 {[%clk 0:01:37]} 25. Re1 {[%clk 0:00:58]}  Nxe6 {[%clk 0:01:29]} 26. fxe6 {[%clk 0:00:58]}  Rae8 {[%clk 0:01:21]} 27. Rge4 {[%clk 0:00:57]}  c6 {[%clk 0:01:19]} 28. g4 {[%clk 0:00:55]}  Nc7 {[%clk 0:01:18]} 29. Rb4 {[%clk 0:00:46]}  Nxe6 {[%clk 0:01:15]} 30. Rbe4 {[%clk 0:00:36]}  Kf7 {[%clk 0:01:12]} 31. h4 {[%clk 0:00:27]}  Nc7 {[%clk 0:01:10]} 32. Rxe7+ {[%clk 0:00:25]}  Rxe7 {[%clk 0:01:10]} 33. Rf1 {[%clk 0:00:26]}  Re3 {[%clk 0:01:08]} 34. g5 {[%clk 0:00:23]}  Nd5 {[%clk 0:01:06]} 35. gxf6 {[%clk 0:00:24]}  gxf6 {[%clk 0:01:05]} 36. Bd4 {[%clk 0:00:21]}  Rxd3 {[%clk 0:01:04]} 37. Bxa7 {[%clk 0:00:21]}  Rb3 {[%clk 0:01:01]} 38. Rf2 {[%clk 0:00:20]}  b6 {[%clk 0:00:59]} 39. Bb8 {[%clk 0:00:17]}  Kg6 {[%clk 0:00:53]} 40. Kh2 {[%clk 0:00:14]}  Kh5 {[%clk 0:00:51]} 41. Bg3 {[%clk 0:00:13]}  Kg4 {[%clk 0:00:50]} 42. Rg2 {[%clk 0:00:08]}  Ne3 {[%clk 0:00:49]} 43. Rf2 {[%clk 0:00:05]}  f5 {[%clk 0:00:38]} 44. Bf4 {[%clk 0:00:03]}  Nd1 {[%clk 0:00:34]} 45. Rd2 {[%clk 0:00:02]}  Rxb2 {[%clk 0:00:32]} 46. Rxb2 {[%clk 0:00:02]}  Nxb2 {[%clk 0:00:33]} 47. Bc7 {[%clk 0:00:03]}  b5 {[%clk 0:00:33]} 48. Kg2 {[%clk 0:00:03]}  Nc4 {[%clk 0:00:32]} 49. Bd8 {[%clk 0:00:02]}  Nxa3 {[%clk 0:00:32]} 0-1


[Site "https://www.chess.com"]

[Event "Titled Tuesday Blitz August 22 Early 2023"]
[White "Begunov, Konstantin"]
[Black "Zarubitski, Viachaslau"]
[WhiteFideId "4118510"]
[BlackFideId "13509373"]
[WhiteElo "2447"]
[BlackElo "2625"]
[Result "0-1"]
[Round "5"]
[TimeControl "180+1"]
[Date "2023.08.22"]
[WhiteClock "0:00:10"]
[BlackClock "0:00:30"]
[Board "87"]

1. d4 {[%clk 0:03:00]}  Nf6 {[%clk 0:02:59]} 2. c4 {[%clk 0:03:00]}  Nc6 {[%clk 0:02:59]} 3. Nc3 {[%clk 0:02:58]}  e5 {[%clk 0:02:59]} 4. Nf3 {[%clk 0:02:52]}  exd4 {[%clk 0:02:57]} 5. Nxd4 {[%clk 0:02:52]}  Bb4 {[%clk 0:02:58]} 6. Nxc6 {[%clk 0:02:43]}  Bxc3+ {[%clk 0:02:48]} 7. bxc3 {[%clk 0:02:44]}  bxc6 {[%clk 0:02:49]} 8. Bg5 {[%clk 0:02:37]}  Qe7 {[%clk 0:02:44]} 9. Qd4 {[%clk 0:02:32]}  d6 {[%clk 0:02:36]} 10. e3 {[%clk 0:02:19]}  c5 {[%clk 0:02:21]} 11. Bxf6 {[%clk 0:02:16]}  gxf6 {[%clk 0:02:12]} 12. Qh4 {[%clk 0:01:51]}  Qe5 {[%clk 0:02:03]} 13. Rc1 {[%clk 0:01:50]}  Rb8 {[%clk 0:02:01]} 14. Bd3 {[%clk 0:01:47]}  Bb7 {[%clk 0:01:48]} 15. O-O {[%clk 0:01:37]}  Ke7 {[%clk 0:01:41]} 16. g3 {[%clk 0:01:15]}  Bf3 {[%clk 0:01:28]} 17. Qf4 {[%clk 0:00:57]}  Bc6 {[%clk 0:01:22]} 18. Rb1 {[%clk 0:00:39]}  Qxc3 {[%clk 0:01:13]} 19. Rxb8 {[%clk 0:00:20]}  Rxb8 {[%clk 0:01:12]} 20. Be4 {[%clk 0:00:21]}  Bd7 {[%clk 0:01:11]} 21. Bd5 {[%clk 0:00:18]}  Qe5 {[%clk 0:00:54]} 22. Qh6 {[%clk 0:00:18]}  c6 {[%clk 0:00:52]} 23. Bf3 {[%clk 0:00:18]}  Rb4 {[%clk 0:00:43]} 24. Qxh7 {[%clk 0:00:17]}  Rxc4 {[%clk 0:00:44]} 25. Rd1 {[%clk 0:00:15]}  Ra4 {[%clk 0:00:36]} 26. Qg8 {[%clk 0:00:15]}  Rxa2 {[%clk 0:00:32]} 27. Bh5 {[%clk 0:00:15]}  Qxh5 {[%clk 0:00:30]} 28. Qb8 {[%clk 0:00:13]}  Qxd1+ {[%clk 0:00:30]} 29. Kg2 {[%clk 0:00:10]}  Qd5+ {[%clk 0:00:30]} 0-1


[Site "https://www.chess.com"]

[Event "Titled Tuesday Blitz August 22 Early 2023"]
[White "Boarish_Male"]
[Black "Astafurov, Arseniy"]
[BlackFideId "24175218"]
[WhiteElo "2604"]
[BlackElo "2429"]
[Result "1-0"]
[Round "5"]
[TimeControl "180+1"]
[Date "2023.08.22"]
[WhiteClock "0:00:20"]
[BlackClock "0:00:00"]
[Board "89"]

1. e4 {[%clk 0:03:00]}  e6 {[%clk 0:02:59]} 2. d4 {[%clk 0:03:00]}  d5 {[%clk 0:03:00]} 3. Nd2 {[%clk 0:02:58]}  Be7 {[%clk 0:02:59]} 4. e5 {[%clk 0:02:57]}  c5 {[%clk 0:02:59]} 5. c3 {[%clk 0:02:56]}  Qb6 {[%clk 0:02:59]} 6. Ngf3 {[%clk 0:02:55]}  Nc6 {[%clk 0:02:58]} 7. Nb3 {[%clk 0:02:48]}  cxd4 {[%clk 0:02:52]} 8. cxd4 {[%clk 0:02:49]}  Bb4+ {[%clk 0:02:50]} 9. Bd2 {[%clk 0:02:44]}  Nge7 {[%clk 0:02:48]} 10. Bd3 {[%clk 0:02:42]}  a5 {[%clk 0:02:21]} 11. O-O {[%clk 0:02:35]}  a4 {[%clk 0:02:15]} 12. Bxb4 {[%clk 0:02:34]}  Qxb4 {[%clk 0:02:15]} 13. Nc5 {[%clk 0:02:15]}  Nxd4 {[%clk 0:01:48]} 14. Nxd4 {[%clk 0:02:12]}  Qxc5 {[%clk 0:01:48]} 15. Rc1 {[%clk 0:02:12]}  Qb6 {[%clk 0:01:42]} 16. Nb5 {[%clk 0:02:12]}  O-O {[%clk 0:01:42]} 17. Qc2 {[%clk 0:02:08]}  Ng6 {[%clk 0:01:28]} 18. Rfe1 {[%clk 0:01:28]}  Bd7 {[%clk 0:01:04]} 19. Qc7 {[%clk 0:01:25]}  Qxc7 {[%clk 0:00:59]} 20. Rxc7 {[%clk 0:01:26]}  Bc6 {[%clk 0:00:38]} 21. Nd6 {[%clk 0:01:24]}  Rab8 {[%clk 0:00:26]} 22. g3 {[%clk 0:01:17]}  Nh8 {[%clk 0:00:17]} 23. f4 {[%clk 0:01:16]}  Rfd8 {[%clk 0:00:17]} 24. Kf2 {[%clk 0:01:04]}  Rd7 {[%clk 0:00:17]} 25. Rxd7 {[%clk 0:01:00]}  Bxd7 {[%clk 0:00:18]} 26. Rc1 {[%clk 0:01:00]}  Bc6 {[%clk 0:00:18]} 27. Ke3 {[%clk 0:01:00]}  f6 {[%clk 0:00:16]} 28. Kd4 {[%clk 0:00:59]}  Nf7 {[%clk 0:00:17]} 29. Bxh7+ {[%clk 0:00:56]}  Kf8 {[%clk 0:00:14]} 30. Nxf7 {[%clk 0:00:54]}  Kxf7 {[%clk 0:00:15]} 31. Bd3 {[%clk 0:00:53]}  Rh8 {[%clk 0:00:13]} 32. h4 {[%clk 0:00:53]}  Ra8 {[%clk 0:00:12]} 33. Rc5 {[%clk 0:00:52]}  Ra7 {[%clk 0:00:10]} 34. Bb5 {[%clk 0:00:46]}  Bxb5 {[%clk 0:00:04]} 35. Rxb5 {[%clk 0:00:46]}  f5 {[%clk 0:00:03]} 36. Kc5 {[%clk 0:00:46]}  Ke7 {[%clk 0:00:03]} 37. Kb6 {[%clk 0:00:45]}  Ra8 {[%clk 0:00:03]} 38. Kxb7 {[%clk 0:00:46]}  Rh8 {[%clk 0:00:04]} 39. Rc5 {[%clk 0:00:36]}  Rd8 {[%clk 0:00:04]} 40. Kb6 {[%clk 0:00:33]}  d4 {[%clk 0:00:03]} 41. Rc2 {[%clk 0:00:30]}  Rd5 {[%clk 0:00:03]} 42. b3 {[%clk 0:00:23]}  axb3 {[%clk 0:00:03]} 43. axb3 {[%clk 0:00:24]}  Kd7 {[%clk 0:00:04]} 44. b4 {[%clk 0:00:22]}  d3 {[%clk 0:00:04]} 45. Rd2 {[%clk 0:00:22]}  g6 {[%clk 0:00:02]} 46. b5 {[%clk 0:00:22]}  Ke7 {[%clk 0:00:01]} 47. Kc6 {[%clk 0:00:21]}  Kd8 {[%clk 0:00:02]} 48. b6 {[%clk 0:00:21]}  Kc8 {[%clk 0:00:03]} 49. b7+ {[%clk 0:00:21]}  Kb8 {[%clk 0:00:00]} 50. Ra2 {[%clk 0:00:20]} 1-0


[Site "https://www.chess.com"]

[Event "Titled Tuesday Blitz August 22 Early 2023"]
[White "Dilmukhametov, Artur"]
[Black "Arabidze, Meri"]
[WhiteFideId "24179922"]
[BlackFideId "13604040"]
[WhiteElo "2190"]
[BlackElo "2581"]
[Result "0-1"]
[Round "5"]
[TimeControl "180+1"]
[Date "2023.08.22"]
[WhiteClock "0:00:00"]
[BlackClock "0:00:05"]
[Board "90"]

1. e4 {[%clk 0:02:56]}  c5 {[%clk 0:03:00]} 2. Nf3 {[%clk 0:02:55]}  e6 {[%clk 0:03:00]} 3. c3 {[%clk 0:02:54]}  d5 {[%clk 0:02:57]} 4. e5 {[%clk 0:02:52]}  Bd7 {[%clk 0:02:57]} 5. d4 {[%clk 0:02:52]}  Qb6 {[%clk 0:02:57]} 6. a3 {[%clk 0:02:47]}  Bb5 {[%clk 0:02:57]} 7. Bxb5+ {[%clk 0:02:46]}  Qxb5 {[%clk 0:02:57]} 8. b4 {[%clk 0:02:47]}  b6 {[%clk 0:02:42]} 9. a4 {[%clk 0:02:11]}  Qa6 {[%clk 0:02:42]} 10. b5 {[%clk 0:02:11]}  Qb7 {[%clk 0:02:42]} 11. O-O {[%clk 0:02:10]}  Ne7 {[%clk 0:02:41]} 12. Ba3 {[%clk 0:01:32]}  Nf5 {[%clk 0:02:39]} 13. Nbd2 {[%clk 0:01:29]}  h5 {[%clk 0:02:29]} 14. c4 {[%clk 0:01:24]}  cxd4 {[%clk 0:02:26]} 15. Bxf8 {[%clk 0:01:22]}  Kxf8 {[%clk 0:02:27]} 16. Qb3 {[%clk 0:01:18]}  Nd7 {[%clk 0:02:17]} 17. cxd5 {[%clk 0:01:18]}  Nc5 {[%clk 0:02:13]} 18. Qc4 {[%clk 0:01:06]}  Qxd5 {[%clk 0:02:01]} 19. Qxd5 {[%clk 0:01:06]}  exd5 {[%clk 0:02:02]} 20. a5 {[%clk 0:01:07]}  Re8 {[%clk 0:01:59]} 21. axb6 {[%clk 0:01:07]}  axb6 {[%clk 0:02:00]} 22. Ra7 {[%clk 0:01:04]}  Rh6 {[%clk 0:01:28]} 23. Rfa1 {[%clk 0:01:04]}  Rg6 {[%clk 0:01:01]} 24. h4 {[%clk 0:01:03]}  Ne4 {[%clk 0:00:59]} 25. Nb3 {[%clk 0:00:38]}  d3 {[%clk 0:00:55]} 26. Rd7 {[%clk 0:00:35]}  Rg4 {[%clk 0:00:34]} 27. Rxd5 {[%clk 0:00:25]}  Nc3 {[%clk 0:00:17]} 28. Rxd3 {[%clk 0:00:23]}  Ne2+ {[%clk 0:00:17]} 29. Kf1 {[%clk 0:00:24]}  Nf4 {[%clk 0:00:18]} 30. Rd7 {[%clk 0:00:22]}  Nxg2 {[%clk 0:00:13]} 31. Ng5 {[%clk 0:00:20]}  Ngxh4 {[%clk 0:00:10]} 32. Rxf7+ {[%clk 0:00:20]}  Kg8 {[%clk 0:00:10]} 33. Rxf5 {[%clk 0:00:10]}  Nxf5 {[%clk 0:00:11]} 34. Nf3 {[%clk 0:00:11]}  Rf4 {[%clk 0:00:11]} 35. Nbd2 {[%clk 0:00:11]}  h4 {[%clk 0:00:10]} 36. Ra6 {[%clk 0:00:11]}  Nd4 {[%clk 0:00:10]} 37. Nxd4 {[%clk 0:00:10]}  Rxd4 {[%clk 0:00:11]} 38. Nf3 {[%clk 0:00:11]}  Rf4 {[%clk 0:00:11]} 39. Kg2 {[%clk 0:00:10]}  Ref8 {[%clk 0:00:11]} 40. Ng5 {[%clk 0:00:09]}  Rxf2+ {[%clk 0:00:11]} 41. Kh3 {[%clk 0:00:10]}  R2f5 {[%clk 0:00:10]} 42. Kxh4 {[%clk 0:00:10]}  Rxe5 {[%clk 0:00:10]} 43. Rxb6 {[%clk 0:00:10]}  Rf4+ {[%clk 0:00:10]} 44. Kg3 {[%clk 0:00:11]}  Rf8 {[%clk 0:00:08]} 45. Kg4 {[%clk 0:00:08]}  Rc5 {[%clk 0:00:09]} 46. Rb7 {[%clk 0:00:08]}  Re8 {[%clk 0:00:05]} 47. b6 {[%clk 0:00:05]}  Rb5 {[%clk 0:00:05]} 48. Kf4 {[%clk 0:00:04]}  Rf8+ {[%clk 0:00:05]} 49. Kg4 {[%clk 0:00:05]}  Re8 {[%clk 0:00:05]} 50. Kf4 {[%clk 0:00:05]}  Rb4+ {[%clk 0:00:06]} 51. Kf5 {[%clk 0:00:05]}  Rf8+ {[%clk 0:00:06]} 52. Ke5 {[%clk 0:00:01]}  Rb5+ {[%clk 0:00:06]} 53. Kd6 {[%clk 0:00:01]}  Rxg5 {[%clk 0:00:05]} 54. Re7 {[%clk 0:00:02]}  Rb5 {[%clk 0:00:05]} 55. Kc7 {[%clk 0:00:00]}  Rf7 {[%clk 0:00:05]} 0-1


[Site "https://www.chess.com"]

[Event "Titled Tuesday Blitz August 22 Early 2023"]
[White "Shimanov, Aleksandr"]
[Black "Khamdamova, Afruza"]
[WhiteFideId "4198603"]
[BlackFideId "14210444"]
[WhiteElo "2939"]
[BlackElo "2484"]
[Result "0-1"]
[Round "5"]
[TimeControl "180+1"]
[Date "2023.08.22"]
[WhiteClock "0:00:00"]
[BlackClock "0:00:14"]
[Board "91"]

1. Nf3 {[%clk 0:03:00]}  d5 {[%clk 0:02:59]} 2. g3 {[%clk 0:03:00]}  Nf6 {[%clk 0:02:57]} 3. Bg2 {[%clk 0:03:00]}  c5 {[%clk 0:02:58]} 4. O-O {[%clk 0:02:52]}  Nc6 {[%clk 0:02:56]} 5. d3 {[%clk 0:02:53]}  e5 {[%clk 0:02:54]} 6. e4 {[%clk 0:02:52]}  d4 {[%clk 0:02:54]} 7. a4 {[%clk 0:02:50]}  Bd6 {[%clk 0:02:53]} 8. Na3 {[%clk 0:02:49]}  O-O {[%clk 0:02:52]} 9. Nh4 {[%clk 0:02:47]}  a6 {[%clk 0:02:51]} 10. Nc4 {[%clk 0:02:43]}  Bc7 {[%clk 0:02:50]} 11. Nf5 {[%clk 0:02:38]}  Rb8 {[%clk 0:02:45]} 12. Bg5 {[%clk 0:02:36]}  b5 {[%clk 0:02:35]} 13. axb5 {[%clk 0:02:37]}  axb5 {[%clk 0:02:35]} 14. Nd2 {[%clk 0:02:38]}  h6 {[%clk 0:02:33]} 15. Bh4 {[%clk 0:02:33]}  Re8 {[%clk 0:02:32]} 16. f4 {[%clk 0:02:11]}  Re6 {[%clk 0:02:15]} 17. Bh3 {[%clk 0:02:02]}  Re8 {[%clk 0:02:07]} 18. Qf3 {[%clk 0:01:32]}  Bxf5 {[%clk 0:01:59]} 19. Bxf5 {[%clk 0:01:32]}  Rb6 {[%clk 0:01:45]} 20. Kh1 {[%clk 0:01:24]}  Ne7 {[%clk 0:01:39]} 21. Ra7 {[%clk 0:01:09]}  exf4 {[%clk 0:01:27]} 22. gxf4 {[%clk 0:01:03]}  Nxf5 {[%clk 0:01:26]} 23. exf5 {[%clk 0:01:04]}  Bb8 {[%clk 0:01:25]} 24. Ra8 {[%clk 0:01:00]}  Qd5 {[%clk 0:01:22]} 25. Bxf6 {[%clk 0:00:44]}  Qxf3+ {[%clk 0:01:21]} 26. Rxf3 {[%clk 0:00:45]}  Rxf6 {[%clk 0:01:20]} 27. Ne4 {[%clk 0:00:45]}  Rxf5 {[%clk 0:00:48]} 28. Nd6 {[%clk 0:00:45]}  Bxd6 {[%clk 0:00:48]} 29. Rxe8+ {[%clk 0:00:45]}  Kh7 {[%clk 0:00:48]} 30. Kg2 {[%clk 0:00:25]}  Bxf4 {[%clk 0:00:45]} 31. Rf2 {[%clk 0:00:25]}  g5 {[%clk 0:00:40]} 32. Rb8 {[%clk 0:00:21]}  b4 {[%clk 0:00:40]} 33. Re8 {[%clk 0:00:21]}  Kg7 {[%clk 0:00:40]} 34. h3 {[%clk 0:00:18]}  Rd5 {[%clk 0:00:37]} 35. Rfe2 {[%clk 0:00:18]}  Rf5 {[%clk 0:00:29]} 36. Rf2 {[%clk 0:00:17]}  Rd5 {[%clk 0:00:29]} 37. Rf1 {[%clk 0:00:17]}  Rd7 {[%clk 0:00:25]} 38. Ra1 {[%clk 0:00:16]}  Rd5 {[%clk 0:00:20]} 39. Raa8 {[%clk 0:00:15]}  Rf5 {[%clk 0:00:20]} 40. Rg8+ {[%clk 0:00:15]}  Kh7 {[%clk 0:00:19]} 41. Rh8+ {[%clk 0:00:15]}  Kg6 {[%clk 0:00:19]} 42. Rag8+ {[%clk 0:00:15]}  Kh5 {[%clk 0:00:19]} 43. Rxh6+ {[%clk 0:00:15]}  Kxh6 {[%clk 0:00:19]} 44. Rh8+ {[%clk 0:00:07]}  Kg7 {[%clk 0:00:19]} 45. Rc8 {[%clk 0:00:06]}  Re5 {[%clk 0:00:19]} 46. Kf3 {[%clk 0:00:05]}  Re3+ {[%clk 0:00:19]} 47. Kg4 {[%clk 0:00:05]}  Rg3+ {[%clk 0:00:19]} 48. Kf5 {[%clk 0:00:04]}  Rxh3 {[%clk 0:00:17]} 49. Rxc5 {[%clk 0:00:05]}  Rf3 {[%clk 0:00:17]} 50. Kg4 {[%clk 0:00:04]}  Rf2 {[%clk 0:00:18]} 51. Rc4 {[%clk 0:00:04]}  Be3 {[%clk 0:00:18]} 52. Rxb4 {[%clk 0:00:03]}  Rxc2 {[%clk 0:00:18]} 53. Rb7 {[%clk 0:00:03]}  Rd2 {[%clk 0:00:18]} 54. b4 {[%clk 0:00:02]}  Rxd3 {[%clk 0:00:18]} 55. b5 {[%clk 0:00:03]}  Rb3 {[%clk 0:00:18]} 56. b6 {[%clk 0:00:04]}  d3 {[%clk 0:00:19]} 57. Kf3 {[%clk 0:00:04]}  d2 {[%clk 0:00:17]} 58. Ke2 {[%clk 0:00:04]}  g4 {[%clk 0:00:14]} 59. Rb8 {[%clk 0:00:00]}  g3 {[%clk 0:00:14]} 0-1


[Site "https://www.chess.com"]

[Event "Titled Tuesday Blitz August 22 Early 2023"]
[White "Pakleza, Zbigniew"]
[Black "Tsyhanchuk, Stanislav"]
[WhiteFideId "1119290"]
[BlackFideId "13505130"]
[WhiteElo "2831"]
[BlackElo "2482"]
[Result "1-0"]
[Round "5"]
[TimeControl "180+1"]
[Date "2023.08.22"]
[WhiteClock "0:00:10"]
[BlackClock "0:00:03"]
[Board "93"]

1. d4 {[%clk 0:03:00]}  Nf6 {[%clk 0:02:59]} 2. Nf3 {[%clk 0:03:00]}  e6 {[%clk 0:02:58]} 3. Bf4 {[%clk 0:03:01]}  c5 {[%clk 0:02:56]} 4. c3 {[%clk 0:03:01]}  Nc6 {[%clk 0:02:56]} 5. e3 {[%clk 0:03:01]}  d5 {[%clk 0:02:54]} 6. Nbd2 {[%clk 0:03:01]}  Bd6 {[%clk 0:02:54]} 7. Bg3 {[%clk 0:03:02]}  O-O {[%clk 0:02:52]} 8. Bd3 {[%clk 0:03:02]}  b6 {[%clk 0:02:50]} 9. Ne5 {[%clk 0:03:02]}  Bb7 {[%clk 0:02:46]} 10. f4 {[%clk 0:03:02]}  Ne7 {[%clk 0:02:43]} 11. Qb1 {[%clk 0:03:03]}  g6 {[%clk 0:02:28]} 12. Bf2 {[%clk 0:03:02]}  Bc7 {[%clk 0:02:14]} 13. O-O {[%clk 0:02:05]}  Nf5 {[%clk 0:02:13]} 14. g4 {[%clk 0:02:03]}  Nd6 {[%clk 0:02:13]} 15. Bh4 {[%clk 0:02:03]}  Kg7 {[%clk 0:01:49]} 16. Qe1 {[%clk 0:01:42]}  Nde4 {[%clk 0:01:44]} 17. Nxe4 {[%clk 0:01:42]}  dxe4 {[%clk 0:01:44]} 18. Bb5 {[%clk 0:01:40]}  cxd4 {[%clk 0:01:07]} 19. cxd4 {[%clk 0:01:37]}  h6 {[%clk 0:00:51]} 20. Rc1 {[%clk 0:01:26]}  Bd6 {[%clk 0:00:45]} 21. Nd7 {[%clk 0:01:12]}  Be7 {[%clk 0:00:23]} 22. Nxf8 {[%clk 0:01:09]}  Kxf8 {[%clk 0:00:23]} 23. f5 {[%clk 0:00:48]}  exf5 {[%clk 0:00:18]} 24. gxf5 {[%clk 0:00:49]}  g5 {[%clk 0:00:16]} 25. Bg3 {[%clk 0:00:49]}  Bd6 {[%clk 0:00:15]} 26. Bc4 {[%clk 0:00:38]}  Kg7 {[%clk 0:00:14]} 27. Be5 {[%clk 0:00:34]}  Be7 {[%clk 0:00:10]} 28. Bb3 {[%clk 0:00:30]}  Bd5 {[%clk 0:00:10]} 29. h4 {[%clk 0:00:19]}  Bxb3 {[%clk 0:00:09]} 30. axb3 {[%clk 0:00:20]}  Qd5 {[%clk 0:00:09]} 31. hxg5 {[%clk 0:00:17]}  hxg5 {[%clk 0:00:10]} 32. Qg3 {[%clk 0:00:13]}  Rg8 {[%clk 0:00:10]} 33. Rc7 {[%clk 0:00:12]}  Bd8 {[%clk 0:00:08]} 34. Rc8 {[%clk 0:00:12]}  Kh6 {[%clk 0:00:05]} 35. Rf2 {[%clk 0:00:11]}  Nh5 {[%clk 0:00:03]} 36. Rh2 {[%clk 0:00:10]}  Qd7 {[%clk 0:00:03]} 37. Rxh5+ {[%clk 0:00:09]}  Kxh5 {[%clk 0:00:03]} 38. Qh3# {[%clk 0:00:10]} 1-0


[Site "https://www.chess.com"]